fUST/lending_fUST_20250817
["ID","MTS","AMOUNT","RATE_DAILY","PERIOD"]
[379881627,1755431317346,500.0,0.0001951,2]
[379881628,1755431317392,500.0,0.0001951,2]
[379881629,1755431317429,500.0,0.0001951,2]
[379881630,1755431317457,500.0,0.0001951,2]
[379881631,1755431317486,500.0,0.0001951,2]
[379881632,1755431317522,11856.27912359,0.00019411,2]
[379881633,1755431317544,30000.0,0.00019411,2]
[379881634,1755431317566,30000.0,0.00019411,2]
[379881635,1755431317603,-246.90959975,0.00019411,2]
[379881636,1755431320030,-327.4346515,0.00019411,2]
[379881637,1755431325623,-151.0,0.000186,2]
[379881638,1755431325648,-48.05654656,0.00019411,2]
[379881639,1755431327618,794.333361,0.00013699,2]
[379881640,1755431328147,-151.11129436,0.00019411,2]
[379881641,1755431330368,-204.70744097,0.00019411,2]
[379881642,1755431333149,-251.60297646,0.00019411,2]
[379881643,1755431335527,-188.86057369,0.00018659,2]
[379881644,1755431337330,-189.11701146,0.00018659,2]
[379881646,1755431340830,-424.92566139,0.00018659,2]
[379881647,1755431342390,-281.51247247,0.00018659,2]
[379881648,1755431344212,-221.61056324,0.00018659,2]
[379881649,1755431346479,-420.78062588,0.00018659,2]
[379881650,1755431348641,-180.40247267,0.00018659,2]
[379881651,1755431348666,-285.70935433,0.0001941,2]
[379881652,1755431351742,-14.29064567,0.0001941,2]
[379881653,1755431351770,-345.46809606,0.00019411,2]
[379881654,1755431355967,-223.74338969,0.00019411,2]
[379881655,1755431357760,-156.19862792,0.00019411,2]
[379881656,1755431359574,-300.51169979,0.00019411,2]
[379881657,1755431361181,-277.40325576,0.0001941,2]
[379881658,1755431361205,-92.17557608,0.00019411,2]
[379881659,1755431362830,-302.13548031,0.00019411,2]
[379881661,1755431365238,-247.54730916,0.00019411,2]
[379881662,1755431368715,-160.37273431,0.00019295,2]
[379881663,1755431370309,-57.33726569,0.00019295,2]
[379881664,1755431370333,-214.66273431,0.00019411,2]
[379881665,1755431372005,-298.39990921,0.00019411,2]
[379881666,1755431373720,-270.5450808,0.00019411,2]
[379881667,1755431376191,-272.30576162,0.00019411,2]
[379881668,1755431377900,-284.16228573,0.00019411,2]
[379881669,1755431380740,-172.82974937,0.00019411,2]
[379881670,1755431386832,-191.14157386,0.0001941,2]
[379881672,1755431388517,-251.93972261,0.0001941,2]
[379881673,1755431391042,-36.91870353,0.0001941,2]
[379881674,1755431391070,-196.29181219,0.00019411,2]
[379881675,1755431395193,-241.59045746,0.000194,2]
[379881676,1755431399021,-154.08709537,0.0001931,2]
[379881677,1755431401349,-124.16280128,0.0001931,2]
[379881678,1755431401372,-112.24439247,0.000194,2]
[379881679,1755431403891,-351.27439793,0.000194,2]
[379881680,1755431407299,-168.0,0.00019381,2]
[379881681,1755431409113,-276.10380504,0.00019381,2]
[379881683,1755431415259,-9.9260266,0.00019381,2]
[379881684,1755431415283,-412.45154283,0.000194,2]
[379881685,1755431415349,190.0,0.00028767,120]
[379881686,1755431418744,-279.19511293,0.000194,2]
[379881687,1755431420469,-288.25799454,0.000194,2]
[379881690,1755431424171,-165.35138601,0.000194,2]
[379881691,1755431425941,-200.36295635,0.000194,2]
[379881692,1755431428208,-172.10771669,0.000194,2]
[379881693,1755431430500,-60.73229319,0.000194,2]
[379881694,1755431430523,-153.37255594,0.000194,2]
[379881695,1755431430545,-33.47782477,0.00019409,2]
[379881717,1755431432681,-1166.52217523,0.00019409,2]
[379881718,1755431432690,-500.0,0.0001941,2]
[379881719,1755431432703,-258.87145276,0.0001941,2]
[379881721,1755431432713,-500.0,0.0001941,2]
[379881723,1755431432722,-18577.78210182,0.0001941,2]
[379881724,1755431432731,-480.0,0.0001941,2]
[379881726,1755431432740,-219412.85838125,0.00019411,2]
[379881729,1755431432751,-462.228,0.00019411,2]
[379881733,1755431432783,-155.87508113,0.00019411,2]
[379881739,1755431432831,-3472.34737769,0.00019411,2]
[379881742,1755431432844,-4730.2013121,0.00019411,2]
[379881745,1755431432855,-1148.58869627,0.00019411,2]
[379881759,1755431436503,-151.97667363,0.0001941,2]
[379881772,1755431438501,-348.02332637,0.0001941,2]
[379881773,1755431438512,-500.0,0.0001941,2]
[379881774,1755431438521,-264.70647106,0.0001941,2]
[379881775,1755431438530,-500.0,0.0001941,2]
[379881776,1755431438540,-279.11912715,0.0001941,2]
[379881777,1755431438549,-155.19662751,0.0001941,2]
[379881778,1755431438559,-500.0,0.0001941,2]
[379881779,1755431438568,-500.0,0.0001941,2]
[379881780,1755431438578,-342.99138134,0.0001941,2]
[379881781,1755431438587,-249.19186683,0.0001941,2]
[379881782,1755431438597,-390.41914684,0.0001941,2]
[379881783,1755431438607,-500.0,0.0001941,2]
[379881784,1755431438616,-323.14866242,0.0001941,2]
[379881785,1755431438657,-176.85133758,0.0001941,2]
[379881786,1755431438666,-500.0,0.0001941,2]
[379881787,1755431438676,-500.0,0.0001941,2]
[379881788,1755431438686,-500.0,0.0001941,2]
[379881789,1755431438695,-500.0,0.0001941,2]
[379881790,1755431438705,-500.0,0.0001941,2]
[379881791,1755431438714,-500.0,0.0001941,2]
[379881792,1755431438723,-500.0,0.0001941,2]
[379881793,1755431438733,-500.0,0.0001941,2]
[379881794,1755431438742,-500.0,0.0001941,2]
[379881795,1755431438752,-500.0,0.0001941,2]
[379881796,1755431438762,-500.0,0.0001941,2]
[379881797,1755431438771,-500.0,0.0001941,2]
[379881798,1755431438780,-500.0,0.0001941,2]
[379881799,1755431438790,-500.0,0.0001941,2]
[379881800,1755431438800,-500.0,0.0001941,2]
[379881801,1755431438810,-500.0,0.0001941,2]
[379881802,1755431438819,-500.0,0.0001941,2]
[379881803,1755431438828,-500.0,0.0001941,2]
[379881804,1755431438838,-500.0,0.0001941,2]
[379881805,1755431438848,-500.0,0.0001941,2]
[379881806,1755431438857,-500.0,0.0001941,2]
[379881807,1755431438867,-500.0,0.0001941,2]
[379881808,1755431438877,-500.0,0.0001941,2]
[379881809,1755431438886,-500.0,0.0001941,2]
[379881810,1755431438896,-500.0,0.0001941,2]
[379881811,1755431438905,-500.0,0.0001941,2]
[379881812,1755431438915,-500.0,0.0001941,2]
[379881813,1755431438924,-500.0,0.0001941,2]
[379881814,1755431438934,-500.0,0.0001941,2]
[379881815,1755431438943,-500.0,0.0001941,2]
[379881816,1755431438953,-500.0,0.0001941,2]
[379881817,1755431438963,-500.0,0.0001941,2]
[379881818,1755431438973,-500.0,0.0001941,2]
[379881819,1755431438983,-500.0,0.0001941,2]
[379881820,1755431438992,-500.0,0.0001941,2]
[379881821,1755431439002,-500.0,0.0001941,2]
[379881822,1755431439011,-500.0,0.0001941,2]
[379881823,1755431439021,-500.0,0.0001941,2]
[379881824,1755431439031,-500.0,0.0001941,2]
[379881825,1755431439041,-500.0,0.0001941,2]
[379881826,1755431439050,-500.0,0.0001941,2]
[379881827,1755431439060,-500.0,0.0001941,2]
[379881828,1755431439070,-500.0,0.0001941,2]
[379881829,1755431439079,-500.0,0.0001941,2]
[379881830,1755431439089,-500.0,0.0001941,2]
[379881831,1755431439098,-500.0,0.0001941,2]
[379881832,1755431439108,-500.0,0.0001941,2]
[379881833,1755431439117,-500.0,0.0001941,2]
[379881834,1755431439127,-500.0,0.0001941,2]
[379881835,1755431439136,-500.0,0.0001941,2]
[379881836,1755431439146,-64154.82200613,0.00019411,2]
[379881837,1755431439156,-151.0,0.000195,2]
[379881838,1755431439165,-2000.0,0.000195,2]
[379881839,1755431439175,-2000.0,0.000195,3]
[379881840,1755431439184,-151.19830469,0.00019509,2]
[379881841,1755431439194,-530.28980198,0.00019509,2]
[379881842,1755431439204,-17842.522448,0.00019509,2]
[379881843,1755431439213,-2264.10087162,0.00019509,2]
[379881844,1755431439223,-480.0,0.0001951,2]
[379881845,1755431439233,-480.0,0.0001951,2]
[379881846,1755431439242,-480.0,0.0001951,2]
[379881847,1755431439252,-480.0,0.0001951,2]
[379881848,1755431439261,-580.2867416,0.0001951,2]
[379881849,1755431439277,-1658.55,0.0001951,2]
[379881850,1755431439287,-480.0,0.0001951,2]
[379881851,1755431439298,-480.0,0.0001951,2]
[379881852,1755431439307,-480.0,0.0001951,2]
[379881853,1755431439317,-461.437109,0.0001951,2]
[379881854,1755431439327,-480.0,0.0001951,2]
[379881855,1755431439337,-480.0,0.0001951,2]
[379881856,1755431439346,-480.0,0.0001951,2]
[379881857,1755431439356,-460.0,0.0001951,2]
[379881858,1755431439366,-2406.12,0.0001951,2]
[379881859,1755431439376,-480.0,0.0001951,2]
[379881860,1755431439385,-480.0,0.0001951,2]
[379881861,1755431439394,-480.0,0.0001951,2]
[379881862,1755431439404,-575.54,0.0001951,2]
[379881863,1755431439413,-480.0,0.0001951,2]
[379881864,1755431439426,-1605.16,0.0001951,2]
[379881865,1755431439435,-480.0,0.0001951,2]
[379881866,1755431439444,-480.0,0.0001951,2]
[379881867,1755431439453,-480.0,0.0001951,2]
[379881868,1755431439462,-480.59887405,0.0001951,2]
[379881869,1755431439471,-480.0,0.0001951,2]
[379881870,1755431439480,-460.0,0.0001951,2]
[379881871,1755431439489,-480.0,0.0001951,2]
[379881872,1755431439499,-461.02704623,0.0001951,2]
[379881873,1755431439507,-405.00936701,0.0001951,2]
[379881874,1755431439517,-1584.95,0.0001951,2]
[379881875,1755431439526,-480.0,0.0001951,2]
[379881876,1755431439534,-480.0,0.0001951,2]
[379881877,1755431439543,-480.0,0.0001951,2]
[379881878,1755431439552,-480.0,0.0001951,2]
[379881879,1755431439562,-480.0,0.0001951,2]
[379881880,1755431439570,-480.0,0.0001951,2]
[379881881,1755431439579,-480.0,0.0001951,2]
[379881882,1755431439590,-562.34,0.0001951,2]
[379881883,1755431439599,-480.0,0.0001951,2]
[379881884,1755431439608,-460.0,0.0001951,2]
[379881885,1755431439617,-480.0,0.0001951,2]
[379881886,1755431439626,-50000.0,0.0001951,2]
[379881887,1755431439794,-500.0,0.0001951,2]
[379881888,1755431439805,-160.0,0.00019511,2]
[379881889,1755431439815,-1026.06126615,0.00019511,2]
[379881890,1755431439824,-1423.11923843,0.00019511,2]
[379881891,1755431439833,-480.0,0.00019511,2]
[379881892,1755431439842,-480.0,0.00019511,2]
[379881893,1755431439851,-480.0,0.00019511,2]
[379881894,1755431439860,-460.0,0.00019511,2]
[379881895,1755431439870,-570.77,0.00019511,2]
[379881896,1755431439879,-1015.99,0.00019511,2]
[379881897,1755431439889,-489.24,0.00019511,2]
[379881898,1755431439898,-502.88308508,0.00019511,2]
[379881899,1755431439907,-461.12773895,0.00019511,2]
[379881900,1755431439915,-480.0,0.00019511,2]
[379881901,1755431439924,-480.0,0.00019511,2]
[379881902,1755431439933,-506.63873082,0.00019511,2]
[379881903,1755431439942,-466.06871574,0.00019511,2]
[379881904,1755431439952,-461.34888444,0.00019511,2]
[379881905,1755431439961,-508.19,0.00019511,2]
[379881906,1755431439970,-480.0,0.00019511,2]
[379881907,1755431439983,-463.90665778,0.00019511,2]
[379881908,1755431439992,-460.0,0.00019511,2]
[379881909,1755431440000,-500.0,0.00019511,2]
[379881910,1755431440010,-579.83,0.00019511,2]
[379881911,1755431440019,-480.0,0.00019511,2]
[379881912,1755431440027,-545.8,0.00019511,2]
[379881913,1755431440036,-480.0,0.00019511,2]
[379881914,1755431440045,-480.0,0.00019511,2]
[379881915,1755431440054,-480.0,0.00019511,2]
[379881916,1755431440063,-480.0,0.00019511,2]
[379881917,1755431440072,-831.87,0.00019511,2]
[379881918,1755431440082,-461.15486196,0.00019511,2]
[379881919,1755431440091,-480.0,0.00019511,2]
[379881920,1755431440101,-480.0,0.00019511,2]
[379881921,1755431440110,-480.0,0.00019511,2]
[379881922,1755431440120,-480.0,0.00019511,2]
[379881923,1755431440130,-480.0,0.00019511,2]
[379881924,1755431440139,-480.0,0.00019511,2]
[379881925,1755431440149,-480.0,0.00019511,2]
[379881926,1755431440159,-462.88569616,0.00019511,2]
[379881928,1755431440168,-480.0,0.00019511,2]
[379881929,1755431440178,-826.56,0.00019511,2]
[379881930,1755431440188,-480.0,0.00019511,2]
[379881931,1755431440198,-500.0,0.00019511,2]
[379881932,1755431440207,-463.53734124,0.00019511,2]
[379881933,1755431440216,-480.0,0.00019511,2]
[379881934,1755431440226,-480.0,0.00019511,2]
[379881935,1755431440235,-599.29,0.00019511,2]
[379881936,1755431440244,-480.0,0.00019511,2]
[379881937,1755431440253,-480.0,0.00019511,2]
[379881938,1755431440262,-480.0,0.00019511,2]
[379881939,1755431440271,-480.0,0.00019511,2]
[379881941,1755431440280,-480.0,0.00019511,2]
[379881942,1755431440289,-2876.96,0.00019511,2]
[379881943,1755431440303,-480.0,0.00019511,2]
[379881944,1755431440313,-480.0,0.00019511,2]
[379881945,1755431440323,-480.0,0.00019511,2]
[379881947,1755431440332,-460.0,0.00019511,2]
[379881949,1755431440342,-480.0,0.00019511,2]
[379881950,1755431440351,-724.27,0.00019511,2]
[379881952,1755431440360,-480.0,0.00019511,2]
[379881954,1755431440370,-480.0,0.00019511,2]
[379881955,1755431440380,-480.0,0.00019511,2]
[379881957,1755431440389,-480.0,0.00019511,2]
[379881959,1755431440399,-480.0,0.00019511,2]
[379881960,1755431440408,-480.0,0.00019511,2]
[379881962,1755431440418,-480.0,0.00019511,2]
[379881964,1755431440427,-480.0,0.00019511,2]
[379881965,1755431440436,-480.0,0.00019511,2]
[379881966,1755431440446,-480.0,0.00019511,2]
[379881967,1755431440455,-500.0,0.00019511,2]
[379881968,1755431440464,-480.0,0.00019511,2]
[379881969,1755431440474,-461.26318852,0.00019511,2]
[379881970,1755431440484,-480.0,0.00019511,2]
[379881971,1755431440494,-500.0,0.00019511,2]
[379881972,1755431440503,-480.0,0.00019511,2]
[379881973,1755431440512,-480.0,0.00019511,2]
[379881974,1755431440521,-480.0,0.00019511,2]
[379881975,1755431440531,-480.0,0.00019511,2]
[379881976,1755431440541,-480.0,0.00019511,2]
[379881977,1755431440550,-480.0,0.00019511,2]
[379881978,1755431440560,-480.0,0.00019511,2]
[379881979,1755431440569,-468.6882578,0.00019511,2]
[379881980,1755431440579,-480.0,0.00019511,2]
[379881981,1755431440588,-480.0,0.00019511,2]
[379881982,1755431440597,-616.52,0.00019511,2]
[379881983,1755431440607,-480.0,0.00019511,2]
[379881984,1755431440616,-4039.42,0.00019511,2]
[379881985,1755431440625,-426.62843911,0.00019511,2]
[379881986,1755431440634,-480.0,0.00019511,2]
[379881987,1755431440644,-480.0,0.00019511,2]
[379881988,1755431440653,-480.0,0.00019511,2]
[379881989,1755431440663,-480.0,0.00019511,2]
[379881990,1755431440672,-344.09640783,0.00019511,2]
[379881991,1755431440681,-280.59169717,0.00019511,2]
[379881992,1755431440691,-480.0,0.00019511,2]
[379881993,1755431440701,-480.0,0.00019511,2]
[379881994,1755431440710,-824.71,0.00019511,2]
[379881995,1755431440720,-480.0,0.00019511,2]
[379881996,1755431440730,-667.75,0.00019511,3]
[379881997,1755431440739,-480.0,0.00019512,2]
[379881998,1755431440749,-480.0,0.00019512,2]
[379881999,1755431440758,-480.0,0.00019512,2]
[379882000,1755431440767,-941.24,0.00019512,2]
[379882001,1755431440777,-480.0,0.00019512,2]
[379882002,1755431440787,-770.3,0.00019512,2]
[379882003,1755431440796,-770.3,0.00019512,2]
[379882004,1755431440806,-770.3,0.00019512,2]
[379882005,1755431440816,-770.3,0.00019512,2]
[379882006,1755431440825,-770.3,0.00019512,2]
[379882007,1755431440835,-770.3,0.00019512,2]
[379882008,1755431440844,-770.3,0.00019512,2]
[379882009,1755431440855,-770.3,0.00019512,2]
[379882010,1755431440864,-770.3,0.00019512,2]
[379882011,1755431440874,-500.0,0.00019512,2]
[379882012,1755431440883,-500.0,0.00019512,2]
[379882013,1755431440892,-500.0,0.00019573,2]
[379882014,1755431440902,-158.64845359,0.00019573,2]
[379882015,1755431440911,-500.0,0.00019573,2]
[379882016,1755431440920,-258.73486462,0.00019573,2]
[379882017,1755431440930,-380.3501662,0.00019573,2]
[379882018,1755431440939,-500.0,0.00019573,2]
[379882019,1755431440949,-500.0,0.00019573,2]
[379882020,1755431440958,-474.40055126,0.00019573,2]
[379882021,1755431440967,-443.03042322,0.00019573,2]
[379882022,1755431440981,-500.0,0.00019573,2]
[379882023,1755431440991,-500.0,0.00019573,2]
[379882024,1755431441001,-254.58585111,0.00019573,2]
[379882025,1755431441011,-500.0,0.00019573,2]
[379882026,1755431441025,-500.0,0.00019573,2]
[379882027,1755431441039,-465.27039241,0.00019573,2]
[379882029,1755431441054,-167.68923922,0.00019573,2]
[379882032,1755431441069,-500.0,0.00019573,2]
[379882034,1755431441080,-500.0,0.00019573,2]
[379882035,1755431441091,-500.0,0.00019573,2]
[379882036,1755431441105,-500.0,0.00019573,2]
[379882037,1755431441117,-489.26136196,0.00019573,2]
[379882038,1755431441130,-500.0,0.00019573,2]
[379882039,1755431441143,-500.0,0.00019573,2]
[379882041,1755431441156,-500.0,0.00019573,2]
[379882042,1755431441170,-500.0,0.00019573,2]
[379882044,1755431441183,-500.0,0.00019573,2]
[379882046,1755431441196,-160.31078128,0.00019573,2]
[379882047,1755431441207,-426.45244949,0.00019573,2]
[379882048,1755431441221,-500.0,0.00019573,2]
[379882049,1755431441233,-197.14,0.00019587,3]
[379882050,1755431441245,-591.45,0.00019587,3]
[379882051,1755431441258,-1720.33,0.00019588,3]
[379882052,1755431441273,-860.16,0.00019588,3]
[379882053,1755431441289,-430.08,0.00019588,3]
[379882054,1755431441305,-215.04,0.00019588,3]
[379882055,1755431441326,-645.15,0.00019588,3]
[379882056,1755431441349,-3440.66,0.00019589,3]
[379882057,1755431441367,-12682.46447135,0.00019589,3]
[379882060,1755431441380,-500.0,0.00019596,2]
[379882062,1755431441392,-500.0,0.00019596,2]
[379882065,1755431441406,-500.0,0.00019596,2]
[379882067,1755431441418,-214.20451056,0.00019596,2]
[379882069,1755431441431,-480.0,0.00019599,2]
[379882072,1755431441444,-940.84,0.00019599,2]
[379882074,1755431441457,-466.8189664,0.00019599,2]
[379882076,1755431441467,-724.58,0.00019599,2]
[379882078,1755431441477,-480.0,0.00019599,2]
[379882080,1755431441488,-480.0,0.00019599,2]
[379882083,1755431441501,-460.85063546,0.00019599,2]
[379882085,1755431441514,-460.21875008,0.00019599,2]
[379882087,1755431441526,-6892.33,0.00019599,2]
[379882090,1755431441537,-1970.3,0.00019599,2]
[379882092,1755431441548,-860.81,0.00019599,2]
[379882094,1755431441559,-480.0,0.00019599,2]
[379882096,1755431441572,-480.0,0.00019599,2]
[379882099,1755431441584,-480.0,0.00019599,2]
[379882101,1755431441595,-480.0,0.00019599,2]
[379882103,1755431441605,-633.39,0.00019599,2]
[379882105,1755431441616,-480.0,0.00019599,2]
[379882107,1755431441628,-1707.02,0.00019599,2]
[379882109,1755431441638,-460.0,0.000196,2]
[379882112,1755431441650,-460.0,0.000196,2]
[379882114,1755431441660,-480.0,0.000196,2]
[379882116,1755431441671,-528.74439239,0.000196,2]
[379882118,1755431441683,-464.65173063,0.000196,2]
[379882121,1755431441694,-460.0,0.000196,2]
[379882123,1755431441706,-460.0,0.000196,2]
[379882125,1755431441717,-480.0,0.000196,2]
[379882128,1755431441732,-480.0,0.000196,2]
[379882130,1755431441744,-480.0,0.000196,2]
[379882132,1755431441756,-466.96709396,0.000196,2]
[379882134,1755431441767,-460.0,0.000196,2]
[379882136,1755431441778,-632.8,0.000196,2]
[379882139,1755431441789,-480.0,0.000196,2]
[379882141,1755431441800,-460.0,0.000196,2]
[379882143,1755431441811,-480.0,0.000196,2]
[379882145,1755431441823,-600.58,0.000196,2]
[379882148,1755431441834,-480.0,0.000196,2]
[379882150,1755431441844,-480.0,0.000196,2]
[379882152,1755431441855,-480.0,0.000196,2]
[379882154,1755431441867,-460.0,0.000196,2]
[379882156,1755431441877,-480.0,0.000196,2]
[379882158,1755431441889,-480.0,0.000196,2]
[379882161,1755431441900,-480.0,0.000196,2]
[379882163,1755431441911,-461.92297599,0.000196,2]
[379882165,1755431441922,-464.70429543,0.000196,2]
[379882167,1755431441932,-460.0,0.000196,2]
[379882169,1755431441944,-480.0,0.000196,2]
[379882172,1755431441955,-480.0,0.000196,2]
[379882174,1755431441966,-460.0,0.000196,2]
[379882176,1755431441981,-480.0,0.000196,2]
[379882178,1755431441992,-480.0,0.000196,2]
[379882180,1755431442003,-460.0,0.000196,2]
[379882183,1755431442014,-480.0,0.000196,2]
[379882185,1755431442027,-464.9654335,0.000196,2]
[379882187,1755431442038,-503.26,0.000196,2]
[379882189,1755431442049,-432.901425,0.000196,2]
[379882192,1755431442061,-480.0,0.000196,2]
[379882194,1755431442073,-480.0,0.000196,2]
[379882196,1755431442087,-480.0,0.000196,2]
[379882198,1755431442099,-480.0,0.000196,2]
[379882200,1755431442110,-480.0,0.000196,2]
[379882202,1755431442122,-1077.88,0.000196,2]
[379882205,1755431442133,-480.0,0.000196,2]
[379882207,1755431442144,-480.0,0.000196,2]
[379882209,1755431442156,-593.43,0.000196,2]
[379882211,1755431442166,-777.35649148,0.000196,2]
[379882213,1755431442177,-260.46298046,0.000196,2]
[379882216,1755431442188,-460.0,0.000196,2]
[379882218,1755431442199,-480.0,0.000196,2]
[379882220,1755431442211,-169.56588514,0.000196,2]
[379882222,1755431442221,-500.0,0.000196,2]
[379882224,1755431442232,-480.0,0.000196,2]
[379882227,1755431442246,-460.0,0.000196,2]
[379882229,1755431442256,-480.0,0.000196,2]
[379882231,1755431442268,-480.0,0.000196,2]
[379882233,1755431442279,-480.0,0.000196,2]
[379882235,1755431442291,-463.10003407,0.000196,2]
[379882237,1755431442302,-480.0,0.000196,2]
[379882240,1755431442313,-480.0,0.000196,2]
[379882242,1755431442324,-480.0,0.000196,2]
[379882244,1755431442336,-480.0,0.000196,2]
[379882246,1755431442347,-480.0,0.000196,2]
[379882248,1755431442358,-461.93697049,0.000196,2]
[379882251,1755431442370,-795.7,0.000196,2]
[379882253,1755431442381,-460.83958604,0.000196,2]
[379882255,1755431442391,-480.0,0.000196,2]
[379882257,1755431442402,-480.0,0.000196,2]
[379882259,1755431442413,-480.0,0.000196,2]
[379882261,1755431442424,-480.0,0.000196,2]
[379882264,1755431442435,-480.0,0.000196,2]
[379882266,1755431442447,-421.53071083,0.000196,2]
[379882268,1755431442458,-480.0,0.000196,2]
[379882270,1755431442470,-480.0,0.000196,2]
[379882272,1755431442481,-480.0,0.000196,2]
[379882275,1755431442492,-480.0,0.000196,2]
[379882277,1755431442503,-480.0,0.000196,2]
[379882279,1755431442515,-480.0,0.000196,2]
[379882299,1755431442654,-480.0,0.000196,2]
[379882303,1755431442717,-446.76545114,0.000196,2]
[379882305,1755431442726,-480.0,0.000196,2]
[379882307,1755431442735,-480.0,0.000196,2]
[379882309,1755431442744,-603.59,0.000196,2]
[379882311,1755431442753,-480.0,0.000196,2]
[379882313,1755431442763,-480.0,0.000196,2]
[379882315,1755431442772,-480.0,0.000196,2]
[379882317,1755431442781,-480.0,0.000196,2]
[379882319,1755431442791,-480.0,0.000196,2]
[379882321,1755431442800,-480.0,0.000196,2]
[379882323,1755431442809,-480.0,0.000196,2]
[379882324,1755431442818,-480.0,0.000196,2]
[379882326,1755431442828,-480.0,0.000196,2]
[379882328,1755431442837,-480.0,0.000196,2]
[379882330,1755431442846,-407.34755068,0.000196,2]
[379882332,1755431442855,-480.0,0.000196,2]
[379882335,1755431442865,-280.0,0.000196,2]
[379882337,1755431442874,-480.0,0.000196,2]
[379882339,1755431442883,-480.0,0.000196,2]
[379882341,1755431442893,-480.0,0.000196,2]
[379882343,1755431442902,-480.0,0.000196,2]
[379882345,1755431442912,-480.0,0.000196,2]
[379882347,1755431442921,-460.0,0.000196,2]
[379882349,1755431442931,-480.0,0.000196,2]
[379882351,1755431442940,-480.0,0.000196,2]
[379882353,1755431442949,-563.68011924,0.000196,2]
[379882355,1755431442959,-480.0,0.000196,2]
[379882357,1755431442968,-480.0,0.000196,2]
[379882359,1755431442985,-500.0,0.000196,2]
[379882361,1755431442995,-480.48922689,0.000196,2]
[379882363,1755431443004,-480.0,0.000196,2]
[379882364,1755431443013,-460.92206159,0.000196,2]
[379882368,1755431443028,-480.0,0.000196,2]
[379882370,1755431443038,-480.0,0.000196,2]
[379882373,1755431443048,-480.0,0.000196,2]
[379882376,1755431443060,-480.0,0.000196,2]
[379882378,1755431443070,-480.0,0.000196,2]
[379882380,1755431443079,-480.0,0.000196,2]
[379882382,1755431443088,-202.64848412,0.000196,2]
[379882384,1755431443097,-460.0,0.000196,2]
[379882386,1755431443107,-460.48522696,0.000196,2]
[379882388,1755431443116,-1000.0,0.000196,2]
[379882389,1755431443126,-480.0,0.000196,2]
[379882391,1755431443152,-480.0,0.000196,2]
[379882394,1755431443199,-480.0,0.000196,2]
[379882396,1755431443224,-480.0,0.000196,2]
[379882398,1755431443235,-480.0,0.000196,2]
[379882401,1755431443244,-480.0,0.000196,2]
[379882405,1755431443254,-460.0,0.000196,2]
[379882408,1755431443264,-480.0,0.000196,2]
[379882411,1755431443273,-480.0,0.000196,2]
[379882413,1755431443282,-480.0,0.000196,2]
[379882415,1755431443291,-480.0,0.000196,2]
[379882417,1755431443301,-370.19559932,0.000196,2]